Cogmind - Beta 11 @@@ ROGUE MODE // 2022.03.25 @ 00:19:51 Player: CrossedViper Result: Destroyed by G-73 Enforcer with Phase Gun Performance ------------- Evolutions (8) 4000 Regions Visited (23) 4600 Robots Destroyed (171) 855 Value Destroyed (8904) 8904 Prototype IDs (83) 1660 Alien Tech Used (7) 1400 Bonus (16598) 16598 TOTAL SCORE: 38017 Bonus ------- Triggered High Security 500 High Alert Combat Kills 1843 Follower Combat Kills 5783 Entered DSFs 500 Network Hubs Disabled 400 Aligned with FarCom 300 Met Imprinter 300 Was Imprinted 300 Built Enhanced Grunts 300 A7 Reached Mainframe 300 Met R17 at Cetus 500 Found Hidden Lab 3000 Used Core Reset Matrix 3000 Pursued by Intercept 1500 Friendly Fire -1928 Cogmind --------- Core Integrity 0/1450 Matter 188/300 Energy 98/100 System Corruption 14% Temperature Cool (9) Movement Core (50) Location -2/Testing Parts ------- > --- POWER (2) -------- (None) > --- PROPULSION (7) --- (None) > --- UTILITY (11) ----- Advanced Signal Interpreter Experimental Hacking Suite System Mapper Deep Network Scanner Experimental System Shield > --- WEAPON (4) ------- (None) > --- INVENTORY (5) ---- Huge Storage Unit Subatomic Replicator Core Stripper Peak State ------------ > --- POWER ------------ Light Antimatter Reactor Reinforced Quantum Reactor > --- PROPULSION ------- Enhanced Armored Medium Treads Enhanced Armored Medium Treads Enhanced Armored Medium Treads Advanced Heavy Treads Centrium Heavy Treads > --- UTILITY ---------- Experimental Heat Sink Huge Storage Unit Advanced Signal Interpreter Experimental Targeting Computer Advanced Target Analyzer Medium Regenerative Plating Phase Armor LC Capacitor > --- WEAPON ----------- Enhanced Quantum Rifle Enhanced Quantum Rifle Sigix Broadsword > --- INVENTORY -------- Zionite Heavy DM Reactor Armored Heavy Treads Armored Heavy Treads Biometal Heavy Treads Experimental Heat Sink Advanced Sensor Array Long-range Sensor Array Layered Medium Armor Plating Experimental Hacking Suite Deep Network Scanner Experimental System Shield Core Reset Matrix Subatomic Replicator Heavy Tesla Rifle Zionite Laser-M Zionite Alpha Cannon Enhanced Nova Cannon Advanced KE Penetrator Plasma Cutter Core Stripper [Rating: 243] Favorites ----------- Power Quantum Reactor Engine Ion Engine Power Core Neutrino Core Reactor Quantum Reactor Propulsion Enhanced Armored Medium Treads Treads Enhanced Armored Medium Treads Leg Improved Titanium Leg Hover Unit Combat Gravmag System Utility Experimental Heat Sink Device Experimental Heat Sink Storage Large Storage Unit Processor Advanced Targeting Computer Hackware Hacking Suite Protection Medium Regenerative Plating Artifact LC Capacitor Weapon Coil Gun Energy Gun Enhanced Quantum Rifle Energy Cannon Enhanced Nova Cannon Ballistic Gun Coil Gun Launcher Neutron Missile Launcher Special Weapon Plasma Cutter Impact Weapon Heavy Flail Slashing Weapon Sigix Broadsword Build | -11 -10 -10 -10 -9 -8 -7 -7 -6 -6 -6 -5 -5 -5 -5 -5 -5 -4 -4 -4 -3 -3 -2 -2 ------- Run | Scr Mat Min Exi Min Mat Fac DSF Fac Low Zio Pro Fac Ext Cet Arc Hub Fac Arm Lab Res Qua Res Tes Slots Evolved 16 | . . . . . 4 2 . 2 . . . 2 . . . . 2 . . 2 . 2 . Power 1 | . . . . . . . . . . . . 1 . . . . . . . . . . . Propulsion 4 | . . . . . 1 1 . 1 . . . 1 . . . . . . . . . . . Utility 9 | . . . . . 3 1 . . . . . . . . . . 2 . . 1 . 2 . Weapon 2 | . . . . . . . . 1 . . . . . . . . . . . 1 . . . Parts Attached 297 | 6 4 . 2 1 13 . 14 7 4 6 20 22 10 17 . 5 4 60 14 16 30 10 32 Power 25 | 1 1 . . . 1 . . . . 3 1 1 . 3 . . . 7 1 . 3 1 2 Engine 6 | 1 1 . . . 1 . . . . 2 . 1 . . . . . . . . . . . Core 2 | . . . . . . . . . . . 1 . . . . . . 1 . . . . . Reactor 17 | . . . . . . . . . . 1 . . . 3 . . . 6 1 . 3 1 2 Propulsion 65 | 2 1 . . . 5 . 5 1 . . 5 7 1 4 . . . 22 3 . 1 2 6 Treads 22 | 2 1 . . . . . 1 . . . . . . . . . . 9 3 . 1 2 3 Leg 23 | . . . . . 4 . 4 1 . . . . . . . . . 11 . . . . 3 Wheel . | . . . . . . . . . . . . . . . . . . . . . . . . Hover 20 | . . . . . 1 . . . . . 5 7 1 4 . . . 2 . . . . . Flight . | . . . . . . . . . . . . . . . . . . . . . . . . Utility 105 | 1 2 . . 1 5 . 2 3 . . 9 7 5 8 . 2 2 18 4 12 5 3 16 Device 47 | . 1 . . 1 1 . 1 1 . . 4 2 3 2 . 1 . 13 2 2 2 . 11 Storage 3 | 1 1 . . . . . . . . . . . . . . . . . . 1 . . . Processor 11 | . . . . . 1 . . 1 . . . 2 . . . . . . . 4 1 1 1 Hackware 6 | . . . . . 1 . . . . . . 1 . . . . . . . . . . 4 Protection 36 | . . . . . 2 . 1 1 . . 5 2 2 6 . 1 2 5 1 5 2 1 . Artifact 2 | . . . . . . . . . . . . . . . . . . . 1 . . 1 . Weapon 102 | 2 . . 2 . 2 . 7 3 4 3 5 7 4 2 . 3 2 13 6 4 21 4 8 Energy Gun 28 | 1 . . 2 . 2 . . . . . . . 2 . . . 1 4 3 . 6 2 5 Energy Cannon 41 | . . . . . . . . . 1 1 . 7 2 1 . 2 . 6 1 4 13 2 1 Ballistic Gun 20 | 1 . . . . . . 6 2 3 2 2 . . . . 1 1 . . . . . 2 Ballistic Cannon . | . . . . . . . . . . . . . . . . . . . . . . . . Launcher 7 | . . . . . . . 1 1 . . 2 . . 1 . . . 2 . . . . . Special Weapon 1 | . . . . . . . . . . . 1 . . . . . . . . . . . . Impact Weapon 3 | . . . . . . . . . . . . . . . . . . 1 2 . . . . Slashing Weapon 2 | . . . . . . . . . . . . . . . . . . . . . 2 . . Piercing Weapon . | . . . . . . . . . . . . . . . . . . . . . . . . Special Melee Weapon . | . . . . . . . . . . . . . . . . . . . . . . . . Unidentified Prototypes 42 | . . . . . 1 . . . . . 2 3 4 2 . 1 1 6 4 2 2 1 13 Corrupted Parts 2 | . . . . . . . . . . . 1 . . 1 . . . . . . . . . System Corruption 4 | . . . . . . . . . . . 1 . . 3 . . . . . . . . . Parts Lost 52 | . . . . . 1 . . 1 . . 1 1 . . . 2 1 17 . 1 2 6 19 Power 6 | . . . . . . . . . . . . . . . . 1 . 3 . . . . 2 Propulsion 9 | . . . . . . . . . . . . . . . . . . . . . . 3 6 Utility 28 | . . . . . 1 . . 1 . . 1 1 . . . 1 1 11 . 1 1 1 8 Weapon 9 | . . . . . . . . . . . . . . . . . . 3 . . 1 2 3 Highest Loss Streak 15 | . . . . . 1 . . 1 . . 1 1 . . . 1 1 9 . 1 1 5 15 To Critical Strikes 1 | . . . . . . . . . . . . . . . . . . . . . . 1 . Average Slot Usage (%) 88 | . 87 100 100 100 96 84 93 94 99 93 97 96 94 92 88 88 87 89 86 81 70 73 68 Engine 3 | . 14 14 14 14 8 7 7 6 6 4 . 5 5 2 . . . . . . . . . Reactor 4 | . . . . . . . . . . 1 1 . . 6 11 9 5 7 10 9 8 8 7 Treads 13 | . 28 28 28 28 3 . 1 . . . . . . . . . . 9 26 27 22 19 13 Leg 9 | . . . . . 21 23 27 33 33 33 27 . . . . . . 14 . . . . . Hover 5 | . . . . . . . . . . . 4 35 35 34 35 35 31 4 . . . . . Device 11 | . 2 14 14 14 17 15 17 11 13 13 11 4 5 10 11 8 5 19 19 9 5 4 13 Storage 6 | . 14 14 14 14 9 7 7 6 6 6 6 5 5 5 5 5 5 5 5 4 4 4 3 Processor 6 | . . . . . 8 7 7 7 13 6 6 10 11 11 11 11 8 5 5 4 11 11 13 Protection 5 | . . . . . 6 7 6 6 6 6 11 11 9 5 5 6 20 6 4 8 4 4 5 Artifact 1 | . . . . . . . . . . . . . . . . . . . 1 4 4 7 1 Energy Gun 5 | . 14 14 17 28 18 15 . . . . . . . . . . . 6 2 4 2 6 2 Energy Cannon 3 | . . . . . . . . . . . . 5 12 9 5 6 . 5 8 9 3 . 2 Ballistic Gun 5 | . 14 14 10 . . . 13 19 18 19 17 8 . . . 1 9 2 . . . . . Naked Turns . | . . . . . . . . . . . . . . . . . . . . . . . . Heaviest Build 210 | 11 29 29 31 31 46 46 49 55 48 55 61 83 77 79 79 79 79 102 112 169 170 208 210 Greatest Support 265 | 40 40 40 40 40 45 45 80 100 100 100 100 84 78 79 79 79 79 220 255 255 265 265 245 Greatest Overweight (x) 3 | . . . . . 1 1 1 . . . . 1 . . . . . 3 . . . 1 1 Average Overweight (x) . | . . . . . . 1 . . . . . . . . . . . . . . . . . Largest Inventory Capacity 25 | 8 15 15 15 15 15 15 15 15 15 15 15 15 15 15 15 15 15 15 15 25 25 25 25 Average Capacity 16 | 7 8 15 15 15 15 15 15 15 15 15 15 15 15 15 15 15 15 15 15 20 25 25 23 Most Carried 25 | 4 8 13 15 15 15 14 15 15 15 15 15 15 15 15 15 15 13 15 15 19 25 24 23 Average Carried 14 | 1 5 9 13 14 14 14 14 14 12 14 14 13 14 14 15 14 12 14 14 15 20 21 18 Final Capacity 25 | 8 15 15 15 15 15 15 15 15 15 15 15 15 15 15 15 15 15 15 15 25 25 25 5 Final Carried 24 | 2 8 13 15 15 14 14 15 15 13 15 14 14 15 15 15 12 13 15 15 19 24 21 4 Class Distribution -------------------- 25% | Scavenger-Mutant 23% | Mutant 15% | Alien-Mutant 11% | Scavenger-Gunner 8% | Scavenger-Tank 7% | Alien-Gunner 4% | Gunner Dominant Class ---------------- Mutant | -10/Materials Mutant | -10/Mines Mutant | -10/Exiles Mutant | -9/Mines Scavenger-Mutant | -8/Materials Scavenger-Mutant | -7/Factory Mutant | -7/DSF Gunner | -6/Factory Scavenger-Gunner | -6/Lower Caves Scavenger-Gunner | -6/Zion Scavenger-Tank | -5/Proximity Caves Scavenger-Mutant | -5/Factory Scavenger-Mutant | -5/Extension Commander-Mutant | -5/Cetus Scavenger-Mutant | -5/Archives Scavenger-Mutant | -5/Hub_04(d) Scavenger-Mutant | -4/Factory Scavenger-Tank | -4/Armory Scavenger-Mutant | -4/Lab Alien-Gunner | -3/Research Alien-Mutant | -3/Quarantine Alien-Mutant | -2/Research Scavenger-Mutant | -2/Testing Resources | -11 -10 -10 -10 -9 -8 -7 -7 -6 -6 -6 -5 -5 -5 -5 -5 -5 -4 -4 -4 -3 -3 -2 -2 ----------- Run | Scr Mat Min Exi Min Mat Fac DSF Fac Low Zio Pro Fac Ext Cet Arc Hub Fac Arm Lab Res Qua Res Tes Matter Collected 4440 | 268 82 31 20 10 125 . 351 142 118 42 670 278 119 198 . 6 190 793 76 232 365 123 201 Remotely . | . . . . . . . . . . . . . . . . . . . . . . . . Salvage Created 9267 | 70 139 103 . 102 284 . 325 92 183 . 585 202 510 80 . 343 260 1951 76 1305 1629 562 466 Parts 478 | 2 8 9 . 4 11 . 18 10 4 . 33 15 25 2 . 16 4 75 6 70 109 34 23 Haulers Intercepted 3 | . . . . . 1 . 1 . . . . . . . . 1 . . . . . . . Recyclers Shooed 3 | . . 1 . 1 . . . . . . . . . . . . . . . . . 1 . Parts Field Recycled . | . . . . . . . . . . . . . . . . . . . . . . . . Retrieved Matter . | . . . . . . . . . . . . . . . . . . . . . . . . Parts Self-Destructed 24 | . . . . . . . . . 3 . 21 . . . . . . . . . . . . Prevented 6 | . . . . . . . . . . . 6 . . . . . . . . . . . . Kills | -11 -10 -10 -10 -9 -8 -7 -7 -6 -6 -6 -5 -5 -5 -5 -5 -5 -4 -4 -4 -3 -3 -2 -2 ------- Run | Scr Mat Min Exi Min Mat Fac DSF Fac Low Zio Pro Fac Ext Cet Arc Hub Fac Arm Lab Res Qua Res Tes Combat Hostiles Destroyed 129 | . 3 3 . . 5 . 9 4 4 . 3 2 5 1 . 2 3 34 1 17 21 7 5 Melee 11 | . . . . . . . . . . . . . . . . . . . . . 7 4 . Guns 54 | . 3 3 . . 4 . 5 2 1 . 3 . . . . . 3 18 . 5 . 3 4 Cannons 38 | . . . . . . . . . . . . 1 3 . . 2 . 5 . 12 14 . 1 AOE 14 | . . . . . . . 4 2 2 . . . . . . . . 6 . . . . . Classes Destroyed 22 | 1 1 1 . . 3 . 2 . . . 1 2 3 . . 1 . 4 . 2 . . 1 Worker 9 | . . . . . . . . . . . . . . . . 2 2 . . 2 1 2 . Builder 7 | . . . . . . . . . . . . 2 . . . 1 . . . 1 3 . . Tunneler 1 | . . . . . . . . . . . . . . . . . . . . 1 . . . Hauler 3 | . . . . . 1 . 1 . . . . . . . . 1 . . . . . . . Recycler 5 | 1 . . . 1 . . . . . . . . 1 . . . . . . . 2 . . Operator 2 | . . . . . . . . . . . . . 1 . . . . . . 1 . . . Watcher 9 | . . . . . . . . . . . . . 1 . . 1 . . . 3 2 2 . Swarmer 28 | . . 1 . . . . 4 3 . . . . . . . . . 7 . 3 7 3 . Cutter 2 | . . . . . . . . . . . . . . . . . . . . 2 . . . Saboteur 1 | . . . . . . . . . . . . . . . . . . 1 . . . . . Grunt 33 | . 3 2 . . 1 . 2 . 4 . . 1 . . . . 2 10 . 1 4 3 . Duelist 5 | . . . . . . . . . . . . . . . . . . 4 . . 1 . . Researcher 1 | . . . . . . . . . . . . . . . . . . . . . . . 1 Sentry 15 | . . . . . 3 . . 1 . . 2 . 1 . . 1 . 4 . 2 . 1 . Demolisher 3 | . . . . . . . . . . . 3 . . . . . . . . . . . . Specialist 4 | . . . . . . . . . . . . . . . . . . 4 . . . . . Hunter 6 | . . . . . 1 . . . . . . . 2 . . 1 1 . . . . . 1 Programmer 25 | . . . . . . . 2 . . . . . . . . . . 4 . 7 9 . 3 Heavy 2 | . . . . . . . 1 . . . . 1 . . . . . . . . . . . Behemoth 2 | . . . . . . . . . . . . . 2 . . . . . . . . . . Cetus Guard 1 | . . . . . . . . . . . . . . 1 . . . . . . . . . Tracker 1 | . . . . . . . . . . . . . . . . . . . . 1 . . . Combat Programmer 1 | . . . . . . . . . . . . . . . . . . . . 1 . . . Protovariant G 1 | . . . . . . . . . . . . . . . . . . . . . . . 1 Z-Courier 1 | . . . . . . . . . . . . . . . . . . . . 1 . . . Z-Heavy 1 | . . . . . . . . . . . . . . . . . . 1 . . . . . Thug 1 | . . . . 1 . . . . . . . . . . . . . . . . . . . Mutant 1 | . . . . . . . . . . . . 1 . . . . . . . . . . . Best Kill Streak 8 | 1 3 2 . 1 2 . 4 4 4 . 1 3 2 1 . 5 4 5 1 4 8 3 4 Combat Bots Only 7 | . 3 2 . . 1 . 4 4 4 . 1 1 2 1 . 1 3 5 1 3 7 3 4 Max Kills in Single Turn 5 | 1 1 1 . 1 1 . 3 2 2 . 1 1 1 1 . 5 1 3 1 2 2 2 1 Gunslinging . | . . . . . . . . . . . . . . . . . . . . . . . . Exploded 3 | . . . . . . . 3 2 2 . . . . . . . . 3 . . . . . Melee 1 | . . . . . . . . . . . . . . . . . . . . . 1 1 . Uniques/NPCs Destroyed 1 | . . . . . . . . . . . . . . . . . . . 1 . . . . A5 (-4/Lab) Combat | -11 -10 -10 -10 -9 -8 -7 -7 -6 -6 -6 -5 -5 -5 -5 -5 -5 -4 -4 -4 -3 -3 -2 -2 -------- Run | Scr Mat Min Exi Min Mat Fac DSF Fac Low Zio Pro Fac Ext Cet Arc Hub Fac Arm Lab Res Qua Res Tes Damage Taken 24416 | . 233 115 . . 390 . 589 438 242 . 859 137 547 240 58 677 795 4953 209 1676 2457 3161 6640 Core 2576 | . 30 40 . . 68 . 47 25 36 . 38 . 53 . . 17 61 562 51 46 46 387 1069 Absorbed by Shields 173 | . . . . . . . . . . . . . 49 124 . . . . . . . . . Reduced by Siege Mode 434 | . . . . . . . . . . . . . . . . . . 96 . 58 136 . 144 Redirected to Core 349 | . . . . . . . . . . . . . . . . . . . . . . 318 31 Redirected to Shielding 423 | . . . . . . . . . . . . . . . . . 109 60 . 161 93 . . Regen/Repaired (Parts) 1982 | . . . . . . . . . . 667 . . . . . . . . . 286 405 352 272 Core Remaining (%) 82 | 100 . . . 72 87 . 93 . . . 88 . . . . 93 . . 41 . 84 . . Volleys Fired 509 | 4 16 11 . 10 26 . 23 5 11 1 91 16 33 4 . 15 16 80 17 54 41 11 24 Largest 4 | 2 2 2 . 2 2 . 2 3 3 1 3 3 3 3 . 3 3 3 3 4 2 2 4 Hottest 365 | 60 60 60 . 113 113 . 56 88 100 30 90 105 210 105 . 105 143 305 305 365 210 210 293 Shots Fired 1051 | 8 30 22 . 20 50 . 44 11 26 1 145 28 63 6 1 27 29 220 32 135 69 21 63 Gun 597 | 8 30 22 . 20 50 . 42 10 23 1 123 6 . . . 2 29 139 2 34 . 16 40 Cannon 422 | . . . . . . . . . 3 . . 22 63 3 1 25 . 77 30 101 69 5 23 Launcher 10 | . . . . . . . 2 1 . . . . . 3 . . . 4 . . . . . Special 22 | . . . . . . . . . . . 22 . . . . . . . . . . . . Kinetic 302 | 4 16 11 . . . . 42 10 23 1 123 6 . . . 2 27 30 . . . . 7 Thermal 573 | 4 14 11 . 20 50 . . . 3 . 22 22 63 3 1 25 2 186 32 38 2 19 56 Explosive 7 | . . . . . . . 2 1 . . . . . . . . . 4 . . . . . Electromagnetic 3 | . . . . . . . . . . . . . . 3 . . . . . . . . . Phasic 166 | . . . . . . . . . . . . . . . . . . . . 97 67 2 . Robot Hit Streak 24 | 2 8 11 . 17 11 . 14 10 6 . 18 11 9 2 . 4 7 16 3 21 14 12 24 Robot Miss Streak 7 | 3 7 3 . 1 3 . 6 3 4 . 3 2 4 1 1 1 3 4 . 2 2 1 3 Penetration Max 1 | . . . . . . . . . . . . . . . . . 1 1 . . . . . Secondary Targets 5 | . 1 . . . . . . . . . . . . . . . . 4 . . . . . Max Gunslinging Chain 1 | . 1 . . . . . . . . . . . . . . . . 1 . . . . . Shots Hit Robots 657 | 3 16 14 . 17 40 . 41 9 17 . 107 16 41 2 . 8 21 110 2 76 51 23 43 Core Hits 345 | 1 8 6 . 6 11 . 46 10 7 . 42 9 15 2 1 15 8 66 . 31 28 17 16 Critical Kills 9 | . . . . . . . . . 1 . 1 1 . . . . 1 4 1 . . . . Critical Parts Destroyed 9 | . . . . . . . . . . . 3 . . . . 1 3 2 . . . . . Critical Strikes 32 | . . . . 1 3 . . . 1 . 6 1 . . . 1 4 8 1 3 2 1 . Burn 6 | . . . . 1 3 . . . . . . . . . . . . 2 . . . . . Meltdown 6 | . . . . . . . . . 1 . . 1 . . . . . 3 1 . . . . Destroy 13 | . . . . . . . . . . . 5 . . . . 1 4 3 . . . . . Sever 3 | . . . . . . . . . . . 1 . . . . . . . . . 1 1 . Phase 4 | . . . . . . . . . . . . . . . . . . . . 3 1 . . Melee Attacks 66 | . . . . . . . . . . . . . . . . . . 2 30 . 16 18 . Impact 32 | . . . . . . . . . . . . . . . . . . 2 30 . . . . Slashing 34 | . . . . . . . . . . . . . . . . . . . . . 16 18 . Piercing . | . . . . . . . . . . . . . . . . . . . . . . . . Sneak Attacks 1 | . . . . . . . . . . . . . . . . . . . . . . 1 . Combat Hostiles . | . . . . . . . . . . . . . . . . . . . . . . . . Follow-up Attacks . | . . . . . . . . . . . . . . . . . . . . . . . . Damage Inflicted 25827 | 37 219 203 . 256 605 . 1127 345 910 . 2236 508 1629 307 31 811 649 5573 84 4283 3147 1258 1609 Guns 10324 | 37 219 182 . 256 605 . 806 156 271 . 2065 55 . . . 23 595 2632 . 954 . 400 1068 Cannons 9749 | . . . . . . . . . 227 . . 453 1629 62 31 226 . 1303 61 3248 2006 . 503 Explosions 3229 | . . . . . . . 321 177 412 . . . . 245 . 562 . 1512 . . . . . Melee 1963 | . . . . . . . . . . . . . . . . . . . . . 1105 858 . Ramming 391 | . . 21 . . . . . 12 . . . . . . . . 54 126 23 81 36 . 38 Kinetic 4958 | 15 140 114 . . . . 806 156 271 . 2065 55 . . . 23 562 615 . . . . 136 Thermal 10663 | 22 79 68 . 256 605 . . . 639 . 171 453 1629 62 31 226 33 3320 61 1128 45 400 1435 Explosive 2010 | . . . . . . . 321 177 . . . . . . . . . 1512 . . . . . Electromagnetic 807 | . . . . . . . . . . . . . . 245 . 562 . . . . . . . Impact . | . . . . . . . . . . . . . . . . . . . . . . . . Slashing 1963 | . . . . . . . . . . . . . . . . . . . . . 1105 858 . Piercing . | . . . . . . . . . . . . . . . . . . . . . . . . Phasic 5035 | . . . . . . . . . . . . . . . . . . . . 3074 1961 . . Highest Corruption 32 | . . . . . . . 2 . . . 1 . . 3 3 5 . 8 9 8 19 21 32 Average Corruption 9 | . . . . . . . 1 . . . 1 . . 3 3 3 . 3 8 5 13 11 25 Corruption Purged . | . . . . . . . . . . . . . . . . . . . . . . . . Corruption Blocked 15 | . . . . . . . . . . . . . . . . . . . . . . 15 . Effects 141 | . . . . . . . 2 . . . 1 . . 1 2 6 . 17 8 14 55 5 30 Message Errors 36 | . . . . . . . . . . . 1 . . . . . . 4 1 4 14 . 12 Matter Fused 21 | . . . . . . . . . . . . . . . 1 1 . 2 . 1 10 . 6 Heat Flow Errors 22 | . . . . . . . 1 . . . . . . . . 3 . 2 3 . 10 1 2 Energy Discharges 16 | . . . . . . . 1 . . . . . . 1 . 1 . 3 1 2 4 1 2 Parts Rejected 2 | . . . . . . . . . . . . . . . . . . 1 . . 1 . . Data Loss (minor) 23 | . . . . . . . . . . . . . . . . 1 . 1 2 4 11 2 2 Data Loss (major) 6 | . . . . . . . . . . . . . . . . . . . . 2 2 . 2 Misfires 6 | . . . . . . . . . . . . . . . 1 . . 1 1 1 1 . 1 Alerts 1 | . . . . . . . . . . . . . . . . . . 1 . . . . . Misdirections 3 | . . . . . . . . . . . . . . . . . . . . . . 1 2 Weapon Failures 5 | . . . . . . . . . . . . . . . . . . 2 . . 2 . 1 Overload Shots 2 | . . . . . . . . . . . . . 2 . . . . . . . . . . Overflow Damage 587 | . . . . . . . . . 37 . . . 39 . . 3 4 160 . 161 171 12 . Projectiles 441 | . . . . . . . . . 37 . . . 39 . . . . 57 . 161 147 . . Explosions 106 | . . . . . . . . . . . . . . . . 3 . 103 . . . . . Melee 40 | . . . . . . . . . . . . . . . . . 4 . . . 24 12 . Knockbacks 5 | . . . . . . . . . . . . . . . . . . 2 . 1 2 . . Impact 4 | . . . . . . . . . . . . . . . . . . 2 . 1 1 . . Kinetic . | . . . . . . . . . . . . . . . . . . . . . . . . Secondary 1 | . . . . . . . . . . . . . . . . . . . . . 1 . . Self-Inflicted Damage 504 | . . . . . . . . . . . . . . . . 101 27 372 . . . . 4 Shots 5 | . . . . . . . . . . . . . . . . 1 . 4 . . . . . Rammed 12 | . . 5 . . . . . . . . . . . . . . 1 . 1 2 . . 3 Targets Rammed 31 | . . 5 . . . . . 1 . . . . . . . . 1 15 1 4 1 . 3 Kicked 16 | . . . . . . . . 1 . . . . . . . . . 15 . . . . . Crushed 3 | . . . . . . . . . . . . . . . . . . . . 2 1 . . Highest Temperature 533 | 20 132 . . 42 45 . 196 42 . . 121 281 114 . 6 232 22 533 212 365 218 144 337 Average Temperature 80 | 18 88 . . 18 18 . 118 29 . . 52 64 16 . 4 85 13 127 79 50 95 62 86 Received Heat Transfer 2697 | . 132 54 . . 108 . 54 48 135 . 138 21 65 12 9 63 75 697 . 36 69 108 873 Effects 10 | . . . . . . . . . . . . 3 . . . . . 7 . . . . . Shutdowns 1 | . . . . . . . . . . . . . . . . . . 1 . . . . . Energy Bleed 3 | . . . . . . . . . . . . . . . . . . 3 . . . . . Interference 4 | . . . . . . . . . . . . 3 . . . . . 1 . . . . . Matter Decay 1 | . . . . . . . . . . . . . . . . . . 1 . . . . . Short Circuit 1 | . . . . . . . . . . . . . . . . . . 1 . . . . . Siege Activations 14 | . . . . . . . . . . . . . . . . . . 2 1 4 5 . 2 Total Turns 278 | . . . . . . . . . . . . . . . . . . 30 1 99 106 . 42 Longest Duration 82 | . . . . . . . . . . . . . . . . . . 27 1 82 44 . 25 Robots Corrupted 1 | . . . . . . . . . . . . . . 1 . . . . . . . . . Combat Hostiles 1 | . . . . . . . . . . . . . . 1 . . . . . . . . . Parts Fried 2 | . . . . . . . . . . . . . . 1 . 1 . . . . . . . Impact Corruptions 2 | . . . . . . . . . . . . . . . . . 1 . . 1 . . . Robots Melted 11 | . . . . . 1 . . . 1 . . 1 2 . . . . 5 1 . . . . Combat Hostiles 11 | . . . . . 1 . . . 1 . . 1 2 . . . . 5 1 . . . . Parts Melted 41 | . . . . . 4 . . . 1 . . 1 5 . . 1 . 15 4 2 . 1 7 Heat Transferred 14991 | 50 175 150 . 703 1702 . . . 640 . 555 700 2460 100 50 350 37 4137 37 1184 37 481 1443 Parts Sabotaged 4 | . . . . . . . . . . . . . . . . . . 4 . . . . . Parts Stolen 2 | . . . . . . . . . 2 . . . . . . . . . . . . . . Parts Stripped . | . . . . . . . . . . . . . . . . . . . . . . . . Power Chain Reactions 1 | . . . . . . . . . . . . . . . . . . 1 . . . . . Missiles Intercepted . | . . . . . . . . . . . . . . . . . . . . . . . . Alert | -11 -10 -10 -10 -9 -8 -7 -7 -6 -6 -6 -5 -5 -5 -5 -5 -5 -4 -4 -4 -3 -3 -2 -2 ------- Run | Scr Mat Min Exi Min Mat Fac DSF Fac Low Zio Pro Fac Ext Cet Arc Hub Fac Arm Lab Res Qua Res Tes Peak Influence 2232 | 5 86 86 . 62 171 18 273 295 . . . 186 603 732 462 1121 692 2232 . 527 668 1590 1112 Initial 828 | . 3 . . . . 18 12 142 . . . 23 91 337 292 161 540 338 . . 296 312 828 Average 447 | 2 37 37 . 11 65 18 124 195 . . . 86 313 501 415 494 579 971 . 318 519 778 949 Maximum Alert Level 5 | . . . . . . . 1 1 . . . . 2 3 2 4 2 5 . 2 2 4 4 Low Security (%) 34 | 100 100 100 . 100 100 100 85 65 . . . 100 20 . . 14 . . . 22 . . . Level 1 12 | . . . . . . . 14 34 . . . . 51 7 30 14 . 11 . 24 13 6 . Level 2 34 | . . . . . . . . . . . . . 27 86 69 66 100 33 . 53 86 55 . Level 3 9 | . . . . . . . . . . . . . . 5 . 1 . 18 . . . 16 87 Level 4 5 | . . . . . . . . . . . . . . . . 3 . 18 . . . 20 12 Level 5 1 | . . . . . . . . . . . . . . . . . . 12 . . . . . High Security . | . . . . . . . . . . . . . . . . . . 5 . . . . . Max Security . | . . . . . . . . . . . . . . . . . . . . . . . . Sterilizations 1 | . . . . . . . 1 . . . . . . . . . . . . . . . . Squads Dispatched 48 | . 1 . . . 4 . 1 . . . . 2 1 . . 3 1 9 . 5 6 8 7 Investigation 6 | . 1 . . . . . . . . . . 1 . . . . . 1 . . 2 1 . Extermination 9 | . . . . . . . . . . . . . . . . . . 2 . 2 3 1 1 Reinforcement 14 | . . . . . 1 . 1 . . . . 1 1 . . 3 1 2 . 1 . 2 1 Assault 8 | . . . . . . . . . . . . . . . . . . 4 . . 1 1 2 Garrison 3 | . . . . . 3 . . . . . . . . . . . . . . . . . . Intercept 8 | . . . . . . . . . . . . . . . . . . . . 2 . 3 3 Searches Triggered . | . . . . . . . . . . . . . . . . . . . . . . . . Construction Impeded 1 | . . . . . . . . . . . . . . . . . 1 . . . . . . Haulers Reinforced . | . . . . . . . . . . . . . . . . . . . . . . . . Active Scanning Responses . | . . . . . . . . . . . . . . . . . . . . . . . . Cargo Convoy Interrupts . | . . . . . . . . . . . . . . . . . . . . . . . . Stealth | -11 -10 -10 -10 -9 -8 -7 -7 -6 -6 -6 -5 -5 -5 -5 -5 -5 -4 -4 -4 -3 -3 -2 -2 --------- Run | Scr Mat Min Exi Min Mat Fac DSF Fac Low Zio Pro Fac Ext Cet Arc Hub Fac Arm Lab Res Qua Res Tes Distress Signals 25 | . 1 . . . . . . . . . 9 . 1 2 . 2 2 3 . . 2 2 1 Communications Jammed 9 | . . . . . . . . . . . . . . . . . . 9 . . . . . Distress Signals 9 | . . . . . . . . . . . . . . . . . . 9 . . . . . Times Spotted 426 | . 5 5 . 2 11 . 10 7 7 . 17 6 32 14 3 20 22 106 1 31 37 47 43 Peak Tracking Total 26 | . 4 3 . 2 2 . 4 4 4 . 5 6 7 5 2 8 17 11 1 5 8 10 26 Tactical Retreats 22 | . . . . . . . 1 . . . 2 . . 1 . 3 1 6 . 1 2 3 2 Traps | -11 -10 -10 -10 -9 -8 -7 -7 -6 -6 -6 -5 -5 -5 -5 -5 -5 -4 -4 -4 -3 -3 -2 -2 ------- Run | Scr Mat Min Exi Min Mat Fac DSF Fac Low Zio Pro Fac Ext Cet Arc Hub Fac Arm Lab Res Qua Res Tes Traps Triggered 10 | . 1 . . . . . 1 . . . . . 3 . . . 1 2 . . 2 . . Indirectly . | . . . . . . . . . . . . . . . . . . . . . . . . Trap Hack Attempts . | . . . . . . . . . . . . . . . . . . . . . . . . Triggered . | . . . . . . . . . . . . . . . . . . . . . . . . Disarmed . | . . . . . . . . . . . . . . . . . . . . . . . . Reprogrammed . | . . . . . . . . . . . . . . . . . . . . . . . . Reused . | . . . . . . . . . . . . . . . . . . . . . . . . Traps Reconfigurated 8 | . . . . . . . 8 . . . . . . . . . . . . . . . . Traps Extracted . | . . . . . . . . . . . . . . . . . . . . . . . . Installed . | . . . . . . . . . . . . . . . . . . . . . . . . Triggered . | . . . . . . . . . . . . . . . . . . . . . . . . Machines | -11 -10 -10 -10 -9 -8 -7 -7 -6 -6 -6 -5 -5 -5 -5 -5 -5 -4 -4 -4 -3 -3 -2 -2 ---------- Run | Scr Mat Min Exi Min Mat Fac DSF Fac Low Zio Pro Fac Ext Cet Arc Hub Fac Arm Lab Res Qua Res Tes Machines Disabled 51 | . . . . . . . . . . . 4 1 1 . 3 12 1 12 4 1 5 3 4 Max in Single Turn 11 | . . . . . . . . . . . 1 1 . . . 11 . 2 1 1 1 . 1 Garrison Access 1 | . . . . . . . . . . . . . . . . 1 . . . . . . . Network Hub 2 | . . . . . . . . . . . . . . . . 2 . . . . . . . Machines Sabotaged . | . . . . . . . . . . . . . . . . . . . . . . . . Garrisons Compromised . | . . . . . . . . . . . . . . . . . . . . . . . . Overloaded Fab Kills . | . . . . . . . . . . . . . . . . . . . . . . . . Hacking | -11 -10 -10 -10 -9 -8 -7 -7 -6 -6 -6 -5 -5 -5 -5 -5 -5 -4 -4 -4 -3 -3 -2 -2 --------- Run | Scr Mat Min Exi Min Mat Fac DSF Fac Low Zio Pro Fac Ext Cet Arc Hub Fac Arm Lab Res Qua Res Tes Machines Accessed 25 | . 2 2 2 . 1 1 . 2 . . . 2 8 1 . 1 . 1 1 . 1 . . Terminals 18 | . 2 1 . . 1 1 . 1 . . . 1 8 1 . . . 1 . . 1 . . Fabricators 1 | . . . . . . . . . . . . 1 . . . . . . . . . . . Repair Stations . | . . . . . . . . . . . . . . . . . . . . . . . . Recycling Units . | . . . . . . . . . . . . . . . . . . . . . . . . Scanalyzers 1 | . . . . . . . . 1 . . . . . . . . . . . . . . . Garrison Access 1 | . . . . . . . . . . . . . . . . 1 . . . . . . . Total Hacks 49 | . 9 5 2 . 2 1 . 4 . . . 4 11 1 . 3 . 1 4 . 2 . . Successful 30 | . 2 2 2 . . 1 . 4 . . . 3 8 1 . 1 . 1 4 . 1 . . Failed 18 | . 6 3 . . 2 . . . . . . 1 3 . . 2 . . . . 1 . . Catastrophic 1 | . 1 . . . . . . . . . . . . . . . . . . . . . . Database Lockouts 1 | . 1 . . . . . . . . . . . . . . . . . . . . . . Manual 147 | . 9 4 1 . 2 . . 2 . . . 20 17 1 . 19 6 30 . 9 10 12 5 Terminals 34 | . 9 4 . . 2 1 . 2 . . . 1 11 1 . . . 1 . . 2 . . Fabricators 3 | . . . . . . . . . . . . 3 . . . . . . . . . . . Repair Stations . | . . . . . . . . . . . . . . . . . . . . . . . . Recycling Units . | . . . . . . . . . . . . . . . . . . . . . . . . Scanalyzers 2 | . . . . . . . . 2 . . . . . . . . . . . . . . . Garrison Access 3 | . . . . . . . . . . . . . . . . 3 . . . . . . . Terminal Hacks 24 | . 2 2 2 . . 1 . 1 . . . 1 8 1 . . . 1 4 . 1 . . Record 5 | . . . 1 . . . . . . . . . . . . . . . 3 . 1 . . Robot Analysis 2 | . 1 1 . . . . . . . . . . . . . . . . . . . . . Open Door 12 | . . 1 . . . . . . . . . 1 8 1 . . . 1 . . . . . Open DSF 1 | . . . . . . 1 . . . . . . . . . . . . . . . . . Branch Access Points 2 | . 1 . . . . . . 1 . . . . . . . . . . . . . . . EX-Prototype ID Bank 1 | . . . 1 . . . . . . . . . . . . . . . . . . . . Gate Test 138-A 1 | . . . . . . . . . . . . . . . . . . . 1 . . . . Fabricator Hacks 2 | . . . . . . . . . . . . 2 . . . . . . . . . . . Load Schematic 1 | . . . . . . . . . . . . 1 . . . . . . . . . . . Build 1 | . . . . . . . . . . . . 1 . . . . . . . . . . . Repair Station Hacks . | . . . . . . . . . . . . . . . . . . . . . . . . Recycling Unit Hacks . | . . . . . . . . . . . . . . . . . . . . . . . . Scanalyzer 2 | . . . . . . . . 2 . . . . . . . . . . . . . . . Insert Component 1 | . . . . . . . . 1 . . . . . . . . . . . . . . . Analyze 1 | . . . . . . . . 1 . . . . . . . . . . . . . . . Garrison Access Hacks 1 | . . . . . . . . . . . . . . . . 1 . . . . . . . Seal Access 1 | . . . . . . . . . . . . . . . . 1 . . . . . . . Unauthorized Hacks 1 | . . . . . . . . 1 . . . . . . . . . . . . . . . Terminals 1 | . . . . . . . . 1 . . . . . . . . . . . . . . . Botnet 1 | . . . . . . . . 1 . . . . . . . . . . . . . . . Fabricators . | . . . . . . . . . . . . . . . . . . . . . . . . Repair Stations . | . . . . . . . . . . . . . . . . . . . . . . . . Recycling Units . | . . . . . . . . . . . . . . . . . . . . . . . . Scanalyzers . | . . . . . . . . . . . . . . . . . . . . . . . . Garrison Access . | . . . . . . . . . . . . . . . . . . . . . . . . Data Cores Recovered . | . . . . . . . . . . . . . . . . . . . . . . . . Used . | . . . . . . . . . . . . . . . . . . . . . . . . Hacking Detections 10 | . 1 1 . . 1 . . 1 . . . 1 2 1 . 1 . . . . 1 . . Full Trace Events 2 | . 1 1 . . . . . . . . . . . . . . . . . . . . . Feedback Events . | . . . . . . . . . . . . . . . . . . . . . . . . Feedback Blocked . | . . . . . . . . . . . . . . . . . . . . . . . . Robot Schematics Acquired 3 | . . . . . . . . . . 2 . . . . . . . . . . . . 1 Robots Built . | . . . . . . . . . . . . . . . . . . . . . . . . Authchips . | . . . . . . . . . . . . . . . . . . . . . . . . Time . | . . . . . . . . . . . . . . . . . . . . . . . . Total Robot Build Rating . | . . . . . . . . . . . . . . . . . . . . . . . . Part Schematics Acquired 54 | . . . . . . . . 1 . 15 . 26 . . . 9 . . . . . . 3 Parts Built . | . . . . . . . . . . . . . . . . . . . . . . . . Authchips 1 | . . . . . . . . . . . . 1 . . . . . . . . . . . Time 95 | . . . . . . . . . . . . 95 . . . . . . . . . . . Total Part Build Rating . | . . . . . . . . . . . . . . . . . . . . . . . . Parts Repaired . | . . . . . . . . . . . . . . . . . . . . . . . . Time . | . . . . . . . . . . . . . . . . . . . . . . . . Parts Recycled . | . . . . . . . . . . . . . . . . . . . . . . . . Recycled Matter . | . . . . . . . . . . . . . . . . . . . . . . . . Retrieved Matter . | . . . . . . . . . . . . . . . . . . . . . . . . Retrieved Components . | . . . . . . . . . . . . . . . . . . . . . . . . Parts Scanalyzed 1 | . . . . . . . . 1 . . . . . . . . . . . . . . . Part Schematics Acquired 1 | . . . . . . . . 1 . . . . . . . . . . . . . . . Parts Damaged . | . . . . . . . . . . . . . . . . . . . . . . . . Bothacking | -11 -10 -10 -10 -9 -8 -7 -7 -6 -6 -6 -5 -5 -5 -5 -5 -5 -4 -4 -4 -3 -3 -2 -2 ------------ Run | Scr Mat Min Exi Min Mat Fac DSF Fac Low Zio Pro Fac Ext Cet Arc Hub Fac Arm Lab Res Qua Res Tes Used RIF Installer . | . . . . . . . . . . . . . . . . . . . . . . . . Robots Hacked . | . . . . . . . . . . . . . . . . . . . . . . . . Non-combat . | . . . . . . . . . . . . . . . . . . . . . . . . Combat . | . . . . . . . . . . . . . . . . . . . . . . . . Robot Hacks Applied . | . . . . . . . . . . . . . . . . . . . . . . . . Relay Couplers Released . | . . . . . . . . . . . . . . . . . . . . . . . . Fabnet Peak Effective % . | . . . . . . . . . . . . . . . . . . . . . . . . Robots Rewired 10 | . . . . . . . . . . . 2 . 7 . . . . . . . . . 1 Allies Hacked 1 | . . . . . . . . . . . . . . . . . . . . . . 1 . Hacks Repelled 1 | . . . . . . . . . . . . . . . . . . . . . . 1 . Allies | -11 -10 -10 -10 -9 -8 -7 -7 -6 -6 -6 -5 -5 -5 -5 -5 -5 -4 -4 -4 -3 -3 -2 -2 -------- Run | Scr Mat Min Exi Min Mat Fac DSF Fac Low Zio Pro Fac Ext Cet Arc Hub Fac Arm Lab Res Qua Res Tes Total Allies 84 | . . . . 1 . . . . . 4 2 5 27 5 . 2 2 22 . 4 . 9 1 Largest Group 16 | . . . . 1 . . . . . 4 4 2 15 15 10 8 2 16 . 2 . 7 1 Highest-Rated Group 916 | . . . . 31 . . . . . 154 154 170 732 885 773 589 206 916 . 206 . 751 142 Highest-Rated Ally 159 | . . . . 31 . . . . . 40 49 85 159 159 159 96 103 103 . 103 . 122 142 Zionite Dispatches 22 | . . . . . . . . . . . . 3 4 . . 2 1 5 . 3 . 4 . Heavy 7 | . . . . . . . . . . . . 2 . . . . 1 1 . 1 . 2 . Light 6 | . . . . . . . . . . . . . 3 . . . . 2 . . . 1 . Recon 1 | . . . . . . . . . . . . . 1 . . . . . . . . . . Hacker 1 | . . . . . . . . . . . . . . . . . . . . . . 1 . Trap Resupply 2 | . . . . . . . . . . . . . . . . 1 . 1 . . . . . Defense Resupply 1 | . . . . . . . . . . . . . . . . 1 . . . . . . . Infowar Resupply 2 | . . . . . . . . . . . . . . . . . . 1 . 1 . . . Hover Resupply 1 | . . . . . . . . . . . . 1 . . . . . . . . . . . Zionite Resupply 1 | . . . . . . . . . . . . . . . . . . . . 1 . . . Total Orders 10 | . . . . . . . . . . . 1 1 . 1 . 2 . 3 . 2 . . . STAY 3 | . . . . . . . . . . . . . . 1 . 1 . 1 . . . . . DROP 6 | . . . . . . . . . . . . 1 . . . 1 . 2 . 2 . . . EXPLORE 1 | . . . . . . . . . . . 1 . . . . . . . . . . . . Ally Attacks 719 | . . . . 6 . . . . . . 35 14 152 86 28 79 3 180 . 21 . 104 11 Total Damage 29362 | . . . . 106 . . . . . . 1178 1077 4183 2086 1216 3169 180 8153 . 1081 . 6240 693 Kills 158 | . . . . 2 . . . . . . 9 5 25 14 5 16 . 42 . 9 . 26 5 Allies Corrupted 1 | . . . . . . . . . . . . . . . . . . . . 1 . . . Allies Melted 1 | . . . . . . . . . . . . 1 . . . . . . . . . . . Intel | -11 -10 -10 -10 -9 -8 -7 -7 -6 -6 -6 -5 -5 -5 -5 -5 -5 -4 -4 -4 -3 -3 -2 -2 ------- Run | Scr Mat Min Exi Min Mat Fac DSF Fac Low Zio Pro Fac Ext Cet Arc Hub Fac Arm Lab Res Qua Res Tes Robot Analysis Total 2 | . 1 1 . . . . . . . . . . . . . . . . . . . . . Derelict Logs Recovered 7 | . . 3 . 2 . . . . . 1 1 . . . . . . . . . . . . Drone Launches 5 | . . . . . . . . . . . 3 . . . . 2 . . . . . . . Drone Recoveries 1 | . . . . . . . . . . . 1 . . . . . . . . . . . . Zionite Intel Received 15 | . . . . . . . . . . . . 3 1 . . 3 1 3 . . 2 1 1 Main Access 1 | . . . . . . . . . . . . . . . . . . . . . 1 . . Branch Access 2 | . . . . . . . . . . . . . . . . . 1 . . . . 1 . Emergency Access 2 | . . . . . . . . . . . . 1 1 . . . . . . . . . . Guard Positions 1 | . . . . . . . . . . . . . . . . . . . . . 1 . . Component Stockpiles 1 | . . . . . . . . . . . . . . . . . . 1 . . . . . Prototype Stockpiles 1 | . . . . . . . . . . . . . . . . . . 1 . . . . . Component Schematics 1 | . . . . . . . . . . . . 1 . . . . . . . . . . . Prototype Schematics 2 | . . . . . . . . . . . . 1 . . . 1 . . . . . . . Unaware Analyses 1 | . . . . . . . . . . . . . . . . 1 . . . . . . . Active Terminals 1 | . . . . . . . . . . . . . . . . 1 . . . . . . . Active Garrisons 2 | . . . . . . . . . . . . . . . . . . 1 . . . . 1 Exploration | -11 -10 -10 -10 -9 -8 -7 -7 -6 -6 -6 -5 -5 -5 -5 -5 -5 -4 -4 -4 -3 -3 -2 -2 ------------- Run | Scr Mat Min Exi Min Mat Fac DSF Fac Low Zio Pro Fac Ext Cet Arc Hub Fac Arm Lab Res Qua Res Tes Turns Passed 14135 | 92 465 419 734 442 629 25 446 188 179 1329 936 362 758 302 75 256 213 1377 1215 1147 1216 677 653 Spaces Moved 9141 | 49 253 231 455 246 367 14 224 123 101 981 485 444 807 335 55 375 259 899 653 520 558 362 345 Core 45 | 10 . . . . . . . . . . . . . . . . . . . . . . 35 Treads 3895 | 39 253 231 455 246 57 . . . . . . . . . . . . 236 653 520 558 362 285 Legs 2612 | . . . . . 310 14 224 123 101 981 386 . . . . . . 448 . . . . 25 Wheels . | . . . . . . . . . . . . . . . . . . . . . . . . Hover 2589 | . . . . . . . . . . . 99 444 807 335 55 375 259 215 . . . . . Flight . | . . . . . . . . . . . . . . . . . . . . . . . . Fastest Speed 50 | 50 160 160 160 160 120 190 120 130 130 130 64 50 50 55 55 55 55 55 160 160 160 156 50 Average Speed 119 | 137 160 160 160 160 133 190 139 130 130 130 116 53 50 55 55 55 55 101 160 160 160 157 143 Slowest Speed 330 | 160 160 160 160 160 190 190 190 130 130 130 130 115 55 55 55 55 55 330 160 160 160 235 233 Overloaded Moves . | . . . . . . . . . . . . . . . . . . . . . . . . Propulsion Burnouts . | . . . . . . . . . . . . . . . . . . . . . . . . Robots Hopped . | . . . . . . . . . . . . . . . . . . . . . . . . Cave-ins Triggered . | . . . . . . . . . . . . . . . . . . . . . . . . Teleports 1 | . . . . . . . . . . . . . . . . . . . . . 1 . . Exploration Rate (%) 46 | 4 44 40 88 38 19 1 97 5 25 89 55 16 83 75 66 47 11 60 99 16 64 16 49 Regions Visited 23 Branch Regions 14 Pre-discovered Areas 3 | . . 2 1 . . . . . . . . . . . . . . . . . . . . Known Exits Taken 8 | . 1 . . . . 1 . 1 1 . . . . . . . 1 . . 1 1 1 . Unknown Exits Taken 14 | 1 . 1 1 1 1 . . . . 1 1 1 1 1 1 1 . 1 1 . . . . Scrap Searched 7 | . . 1 . 2 . . . . . 3 1 . . . . . . . . . . . . Spaces Dug 101 | . . . . . . . 6 12 . . . 7 . . . 5 . 38 8 12 7 5 1 Terrain Destroyed 605 | . . . . . . . 11 12 20 . 4 8 13 1 . 305 7 139 20 33 21 5 6 Melee 4 | . . . . . . . . . . . . . . . . . . 1 3 . . . . Projectile 203 | . . . . . . . . . 3 . 4 8 13 1 . 15 7 70 17 33 21 5 6 AOE 398 | . . . . . . . 11 12 17 . . . . . . 290 . 68 . . . . . Terrain Rammed . | . . . . . . . . . . . . . . . . . . . . . . . . Walls Destroyed . | . . . . . . . . . . . . . . . . . . . . . . . . Machines Disabled . | . . . . . . . . . . . . . . . . . . . . . . . . Actions | -11 -10 -10 -10 -9 -8 -7 -7 -6 -6 -6 -5 -5 -5 -5 -5 -5 -4 -4 -4 -3 -3 -2 -2 --------- Run | Scr Mat Min Exi Min Mat Fac DSF Fac Low Zio Pro Fac Ext Cet Arc Hub Fac Arm Lab Res Qua Res Tes Total 11385 | 66 283 256 463 281 456 13 321 140 124 1034 718 544 1100 453 99 399 302 1199 749 724 786 412 463 Wait 839 | . 1 5 . 8 35 . 29 . 2 39 69 41 145 67 45 2 17 81 5 114 110 7 17 Move 9119 | 48 252 230 454 245 366 13 223 122 100 980 484 443 806 334 54 374 259 898 652 519 557 361 345 Hop . | . . . . . . . . . . . . . . . . . . . . . . . . Pick Up 156 | 8 8 5 4 8 7 . 13 3 2 4 14 5 7 7 . 1 4 23 11 6 6 3 7 Fast Attach 113 | . 1 . . . 6 . 3 1 . 1 9 8 4 7 . . 1 37 9 12 4 2 8 Attach 134 | 6 1 . 2 . 6 . 5 4 4 2 6 8 4 7 . 5 3 16 5 1 21 6 22 Detach 52 | . . . . . . . 2 1 3 . . 7 1 7 . 1 . 6 . 1 18 . 5 Swap 55 | . 2 . . 1 1 . 6 2 . 3 5 6 2 3 . . . 7 3 3 6 2 3 Drop 201 | . 2 . 3 9 9 . 17 1 2 4 25 10 10 17 . 1 2 34 16 10 6 2 21 Fire 509 | 4 16 11 . 10 26 . 23 5 11 1 91 16 33 4 . 15 16 80 17 54 41 11 24 Melee 66 | . . . . . . . . . . . . . . . . . . 2 30 . 16 18 . Ram 2 | . . . . . . . . . . . . . . . . . . . . . . . 2 Kick 16 | . . . . . . . . 1 . . . . . . . . . 15 . . . . . Crush 13 | . . 5 . . . . . . . . . . . . . . . . 1 4 1 . 2 Escape Stasis 26 | . . . . . . . . . . . . . 26 . . . . . . . . . . Rewire 84 | . . . . . . . . . . . 15 . 62 . . . . . . . . . 7 Trap . | . . . . . . . . . . . . . . . . . . . . . . . . Miscellaneous . | . . . . . . . . . . . . . . . . . . . . . . . . Route ------- -11/Scrapyard -10/Materials (discovered 2 exits: [*Mat] / *Min) -10/Mines (discovered 2 exits: [*Mat] / *Exi) -10/Exiles -9/Mines -8/Materials -7/Factory (discovered 2 exits: Sto / DSF) -7/DSF -6/Factory (discovered 2 exits: *Low x2) -6/Lower Caves -6/Zion -5/Proximity Caves -5/Factory -5/Extension (discovered 2 exits: *Fac / *Cet) -5/Cetus (discovered 2 exits: *Fac / [*Arc]) -5/Archives -5/Hub_04(d) (discovered 3 exits: *Fac x3) -4/Factory (discovered 3 exits: Upp x2 / *Arm) -4/Armory (discovered 2 exits: *Res / *Lab) -4/Lab -3/Research -3/Quarantine -2/Research (discovered 3 exits: *Acc / *Tes x2) -2/Testing History --------- Turn | Location | Event 31 | -11/Scrapyard | Discovered new exit (range 16) 93 | -11/Scrapyard | Entered Materials 304 | -10/Materials | Discovered new exit (range 15) 317 | -10/Materials | Build established: Mutant 354 | -10/Materials | Central database locked down 354 | -10/Materials | Identified exit to Mines 558 | -10/Materials | Entered Mines 569 | -10/Mines | Met a Derelict who couldn't figure out how to use a Trap Extractor 744 | -10/Mines | Discovered new exit (range 14) 779 | -10/Mines | Deemed a non-threat by the Exiles lab entrance 781 | -10/Mines | Discovered new exit (range 5) 880 | -10/Mines | Learned location of Mines (-9) 977 | -10/Mines | Entered Exiles 1016 | -10/Exiles | Met 8R-AWN 1043 | -10/Exiles | Met EX-HEX 1104 | -10/Exiles | Met EX-DEC 1135 | -10/Exiles | Visited The Gauntlet 1352 | -10/Exiles | Learned location of Zion (-6) 1381 | -10/Exiles | Met EX-BIN 1467 | -10/Exiles | Aligned with FarCom system 1469 | -10/Exiles | Given EX-Vault access code 1505 | -10/Exiles | Opened EX-Vault 1522 | -10/Exiles | Found YOLO Cannon 1524 | -10/Exiles | Found Trap Reconfigurator 1530 | -10/Exiles | Found 0b10 Alert Chip 1562 | -10/Exiles | Warned to stay clear of 0b10 Research branches 1697 | -10/Exiles | Discovered new exit (range 10) 1711 | -10/Exiles | Stole three prototypes: 0b10 Alert Chip, Trap Reconfigurator, YOLO Cannon 1711 | -10/Exiles | Entered Mines 1716 | -9/Mines | Met a Derelict bent on vengeance 1932 | -9/Mines | Received a Mining Laser from a helpful Derelict 1934 | -9/Mines | Learned Materials stockpile data 2019 | -9/Mines | Joined a pair of Derelicts in attacking an 0b10 outpost 2111 | -9/Mines | Discovered new exit (range 9) 2153 | -9/Mines | Entered Materials 2153 | -8/Materials | Evolved 4 slots: Propulsion x1, Utility x3 2302 | -8/Materials | Garrison activated, responded to threat 2576 | -8/Materials | Build established: Scavenger-Mutant 2774 | -8/Materials | Discovered new exit (range 5) 2782 | -8/Materials | Entered Factory 2782 | -7/Factory | Evolved 2 slots: Propulsion x1, Utility x1 2783 | -7/Factory | Identified exit to Storage 2784 | -7/Factory | FarCom data flow suspended 2807 | -7/Factory | Identified exit to DSF 2807 | -7/Factory | Entered DSF 2856 | -7/DSF | Additional patrols routed to DSF 2972 | -7/DSF | Discovered new exit (range 16) 3219 | -7/DSF | Sterilization system engaged 3239 | -7/DSF | Ambient heat levels rising (+10) 3253 | -7/DSF | Entered Factory 3253 | -6/Factory | Evolved 2 slots: Propulsion x1, Weapon x1 3367 | -6/Factory | Identified exit to Lower Caves 3441 | -6/Factory | Entered Lower Caves 3441 | -6/Lower Caves | Spotted UP-8JJ(f) 3442 | -6/Lower Caves | Encountered a Master Thief 3445 | -6/Lower Caves | Spotted JG-KJK(f) 3446 | -6/Lower Caves | Encountered a Master Thief 3450 | -6/Lower Caves | Trap Reconfigurator stolen by Master Thief 3450 | -6/Lower Caves | Coil Gun stolen by Master Thief 3617 | -6/Lower Caves | A Derelict revealed a hidden shortcut to a safe place 3620 | -6/Lower Caves | Identified exit to Zion 3620 | -6/Lower Caves | Entered Zion 3633 | -6/Zion | Learned Factory terminal intel 3679 | -6/Zion | Build established: Scavenger-Gunner 3713 | -6/Zion | Discovered new exit (range 14) 3887 | -6/Zion | Acquired unknown access codes intercepted by a Zionite 3955 | -6/Zion | Visited the Megawrench Repair Shop 4089 | -6/Zion | Given A8's code to call for help 4363 | -6/Zion | Build established: Scavenger-Mutant 4619 | -6/Zion | Imprinted 4621 | -6/Zion | Declared Zion's savior 4693 | -6/Zion | Build established: Mutant 4784 | -6/Zion | Megawrench repaired 12 parts 4949 | -6/Zion | Entered Proximity Caves 4949 | -5/Proximity Caves | Accompanied by 4 allies 5061 | -5/Proximity Caves | Attracted the attention of an 0b10 checkpoint 5087 | -5/Proximity Caves | Build established: Gunner 5318 | -5/Proximity Caves | Learned Factory interactive machine intel 5681 | -5/Proximity Caves | Found Prototype Launcher 5681 | -5/Proximity Caves | Identified Scatter Rocket Array 5843 | -5/Proximity Caves | Discovered new exit (range 14) 5885 | -5/Proximity Caves | Entered Factory 5885 | -5/Factory | Accompanied by 1 ally 5885 | -5/Factory | Evolved 2 slots: Power x1, Propulsion x1 5886 | -5/Factory | Loaded intel: 54 interactive machine locations 5887 | -5/Factory | Loaded intel: 28 terminal locations 5977 | -5/Factory | Zion Hover Resupply teleported in 6075 | -5/Factory | Retrieved Zion intel report: Prototype Schematics 6107 | -5/Factory | Zion Heavy squad teleported in 6214 | -5/Factory | Retrieved Zion intel report: Emergency Access 6220 | -5/Factory | Retrieved Zion intel report: Component Schematics 6221 | -5/Factory | Zion Heavy squad teleported in 6230 | -5/Factory | Discovered new exit (range 6) 6247 | -5/Factory | Entered Extension 6247 | -5/Extension | Accompanied by 2 allies 6312 | -5/Extension | Build established: Scavenger-Mutant 6341 | -5/Extension | Rescued a captive Derelict 6342 | -5/Extension | Rescued a captive Derelict 6371 | -5/Extension | Rescued a captive Derelict 6372 | -5/Extension | Rescued a captive Derelict 6404 | -5/Extension | Retrieved Zion intel report: Emergency Access 6405 | -5/Extension | Zion Light squad teleported in 6433 | -5/Extension | Rescued a captive Derelict 6435 | -5/Extension | Rescued a captive Derelict 6443 | -5/Extension | Rescued a captive Derelict 6451 | -5/Extension | Rescued a captive Derelict 6472 | -5/Extension | Disrupted transfer network 6668 | -5/Extension | Spotted B-75 Beast 6709 | -5/Extension | Destroyed B-75 Beast 6716 | -5/Extension | Found Prototype Protection 6717 | -5/Extension | Spotted B-75 Beast 6728 | -5/Extension | Destroyed B-75 Beast 6769 | -5/Extension | Rescued a captive Derelict 6809 | -5/Extension | Zion Light squad teleported in 6810 | -5/Extension | Zion Light squad teleported in 6813 | -5/Extension | Rescued a captive Derelict 6819 | -5/Extension | Rescued A7 6841 | -5/Extension | Zion Recon squad teleported in 6942 | -5/Extension | Rescued a captive Derelict 6943 | -5/Extension | Rescued a captive Derelict 6958 | -5/Extension | Discovered new exit (range 10) 6960 | -5/Extension | Discovered new exit (range 6) 7005 | -5/Extension | Entered Cetus 7005 | -5/Cetus | Accompanied by 15 allies (A7) 7010 | -5/Cetus | Acquired a Cetus Manufacturing Module code from A7 7016 | -5/Cetus | Spotted Cetus Guard 7017 | -5/Cetus | Spotted Cetus Guard 7017 | -5/Cetus | Spotted Cetus Guard 7021 | -5/Cetus | Spotted Cetus Guard 7021 | -5/Cetus | Allies destroyed Cetus Guard 7026 | -5/Cetus | Allies destroyed Cetus Guard 7028 | -5/Cetus | Allies destroyed Cetus Guard 7037 | -5/Cetus | Allies destroyed Cetus Guard 7044 | -5/Cetus | Identified Zio. Weapon Casing 7076 | -5/Cetus | Escorted A7 to Cetus Mainframe 7083 | -5/Cetus | Started Cetus Manufacturing Module 7094 | -5/Cetus | Discovered new exit (range 16) 7108 | -5/Cetus | Manufactured an Enhanced Grunt 7124 | -5/Cetus | Spotted Cetus Guard 7124 | -5/Cetus | Spotted Cetus Guard 7124 | -5/Cetus | Spotted Cetus Guard 7130 | -5/Cetus | Destroyed Cetus Guard 7130 | -5/Cetus | Spotted Cetus Guard 7133 | -5/Cetus | Manufactured an Enhanced Grunt 7135 | -5/Cetus | Allies destroyed Cetus Guard 7144 | -5/Cetus | Allies destroyed Cetus Guard 7148 | -5/Cetus | Allies destroyed Cetus Guard 7157 | -5/Cetus | Discovered new exit (range 15) 7158 | -5/Cetus | Manufactured an Enhanced Grunt 7160 | -5/Cetus | Scared off Revision 17 7183 | -5/Cetus | Manufactured an Enhanced Grunt 7208 | -5/Cetus | Manufactured an Enhanced Grunt 7307 | -5/Cetus | Entered Archives 7307 | -5/Archives | Accompanied by 10 allies (A7) 7312 | -5/Archives | Received a hacking code to weaken MAIN.C 7351 | -5/Archives | Discovered new exit (range 13) 7382 | -5/Archives | Entered Hub_04(d) 7382 | -5/Hub_04(d) | Accompanied by 8 allies 7382 | -5/Hub_04(d) | Discovered new exit (range 10) 7441 | -5/Hub_04(d) | Retrieved Zion intel report: Active Terminals 7460 | -5/Hub_04(d) | Spotted B-75 Beast 7481 | -5/Hub_04(d) | Discovered new exit (range 16) 7527 | -5/Hub_04(d) | Retrieved Zion intel report: Prototype Schematics 7566 | -5/Hub_04(d) | Retrieved Zion intel report: Unaware Analyses 7567 | -5/Hub_04(d) | Zion Defense Resupply teleported in 7571 | -5/Hub_04(d) | Zion Trap Resupply teleported in 7576 | -5/Hub_04(d) | Discovered new exit (range 5) 7625 | -5/Hub_04(d) | Network Hub disabled 7625 | -5/Hub_04(d) | Network Hub disabled 7632 | -5/Hub_04(d) | Spotted Lightning 7632 | -5/Hub_04(d) | Spotted Lightning 7633 | -5/Hub_04(d) | Spotted Lightning 7638 | -5/Hub_04(d) | Entered Factory 7638 | -4/Factory | Evolved 2 slots: Utility x2 7761 | -4/Factory | Retrieved Zion intel report: Branch Access 7761 | -4/Factory | Identified exit to Upper Caves 7761 | -4/Factory | Identified exit to Armory 7762 | -4/Factory | Zion Heavy squad teleported in 7811 | -4/Factory | Spotted B-86 Titan 7851 | -4/Factory | Entered Armory 7974 | -4/Armory | Zion Infowar Resupply teleported in 8107 | -4/Armory | Build established: Scavenger-Tank 8566 | -4/Armory | Lost 3 parts (1p2u) 8606 | -4/Armory | Retrieved Zion intel report: Active Garrisons 8607 | -4/Armory | Zion Heavy squad teleported in 8630 | -4/Armory | First assault squad dispatched 8707 | -4/Armory | Lost 9 parts (2p4u3w) 8799 | -4/Armory | Zion Light squad teleported in 8889 | -4/Armory | Found Zio. Weapon Casing 8926 | -4/Armory | Zion Light squad teleported in 8930 | -4/Armory | Core integrity fell below 50% 8947 | -4/Armory | Zion Trap Resupply teleported in 8974 | -4/Armory | Assisted by bots powering up and referring to "LRC-V3" 9012 | -4/Armory | Retrieved Zion intel report: Prototype Stockpiles 9078 | -4/Armory | Retrieved Zion intel report: Component Stockpiles 9085 | -4/Armory | Enhanced Grunt warped into view, answering call for help 9091 | -4/Armory | Enhanced Grunt warped into view, answering call for help 9150 | -4/Armory | High security lockdown imminent 9178 | -4/Armory | Discovered new exit (range 7) 9189 | -4/Armory | Terminal network hard line cut 9221 | -4/Armory | Discovered new exit (range 4) 9228 | -4/Armory | Entered Lab 9228 | -4/Lab | Discovered new exit (range 9) 9249 | -4/Lab | Unable to decrypt terminal 9258 | -4/Lab | Detected for breach 9262 | -4/Lab | Gained access to the hidden lab's interior 9266 | -4/Lab | Confronted by A5 9281 | -4/Lab | Destroyed A5 9465 | -4/Lab | Found Prototype Energy Gun 9465 | -4/Lab | Identified Hyp. EM Gauss Rifle 9537 | -4/Lab | Found Alien Artifact 9537 | -4/Lab | Identified Core Reset Matrix 9537 | -4/Lab | Used Core Reset Matrix 9541 | -4/Lab | Sensed 3 artifacts in vicinity 9684 | -4/Lab | Discovered new exit (range 5) 9767 | -4/Lab | Build established: Scavenger-Mutant 10125 | -4/Lab | Unable to decrypt terminal 10125 | -4/Lab | Unable to decrypt terminal 10130 | -4/Lab | Found LC Capacitor 10131 | -4/Lab | Unable to decrypt terminal 10214 | -4/Lab | Found Core Expander 10214 | -4/Lab | Installed Core Expander, added new Propulsion slot 10227 | -4/Lab | Found Integrated Reactor 10227 | -4/Lab | Installed Integrated Reactor, increased core energy generation (+10) 10274 | -4/Lab | Found Prototype Protection 10274 | -4/Lab | Identified Med. Regenerative Plating 10283 | -4/Lab | Found Prototype Energy Gun 10294 | -4/Lab | Found Prototype Hackware 10357 | -4/Lab | Found Prototype Hackware 10361 | -4/Lab | Found Prototype Hackware 10407 | -4/Lab | Found Transdimensional Reconstructor 10443 | -4/Lab | Entered Research 10443 | -3/Research | Evolved 2 slots: Utility x1, Weapon x1 10456 | -3/Research | Zion Zionite Resupply teleported in 10460 | -3/Research | Found Prototype Energy Cannon 10460 | -3/Research | Identified Zio. Alpha Cannon 10464 | -3/Research | Found Zio. Alpha Cannon 10634 | -3/Research | Zion Heavy squad teleported in 10848 | -3/Research | Found Zio. Weapon Casing 10907 | -3/Research | Build established: Alien-Gunner 11050 | -3/Research | Intercept squad dispatched 11078 | -3/Research | Spotted Tracker 11081 | -3/Research | Destroyed Tracker 11121 | -3/Research | Spotted Combat Programmer 11137 | -3/Research | Destroyed Combat Programmer 11173 | -3/Research | Spotted B-86 Titan 11491 | -3/Research | Zion Infowar Resupply teleported in 11496 | -3/Research | Found Prototype Processor 11496 | -3/Research | Identified Exp. Signal Interpreter 11578 | -3/Research | Discovered new exit (range 8) 11588 | -3/Research | Identified exit to Quarantine 11590 | -3/Research | Entered Quarantine 11591 | -3/Quarantine | Detected hypermatrix surge 11591 | -3/Quarantine | Sensed 7 artifacts in vicinity 11651 | -3/Quarantine | Found Sigix Broadsword 11668 | -3/Quarantine | Retrieved Zion intel report: Guard Positions 11700 | -3/Quarantine | Found Subatomic Replicator 11767 | -3/Quarantine | Build established: Alien-Mutant 11792 | -3/Quarantine | Destroyed 7 combat bots 11875 | -3/Quarantine | System corruption reached 10% 12158 | -3/Quarantine | Warped through subspace 12223 | -3/Quarantine | Discovered new exit (range 13) 12276 | -3/Quarantine | Identified exit to Research 12340 | -3/Quarantine | First assault squad dispatched 12501 | -3/Quarantine | Found Core Reset Matrix 12557 | -3/Quarantine | Retrieved Zion intel report: Main Access 12682 | -3/Quarantine | Found Phase Armor 12725 | -3/Quarantine | Found Core Stripper 12806 | -3/Quarantine | Entered Research 12806 | -2/Research | Evolved 2 slots: Utility x2 12806 | -2/Research | Discovered new exit (range 15) 12868 | -2/Research | Identified exit to Access 13118 | -2/Research | Retrieved Zion intel report: Branch Access 13118 | -2/Research | Identified exit to Testing 13119 | -2/Research | Zion Heavy squad teleported in 13196 | -2/Research | Zion Light squad teleported in 13234 | -2/Research | Zion Heavy squad teleported in 13272 | -2/Research | Spotted B-90 Cyclops 13280 | -2/Research | Allies destroyed B-90 Cyclops 13321 | -2/Research | Zion Hacker squad teleported in 13333 | -2/Research | Spotted B-90 Cyclops 13336 | -2/Research | Allies destroyed B-90 Cyclops 13338 | -2/Research | First assault squad dispatched 13368 | -2/Research | Intercept squad dispatched 13377 | -2/Research | Spotted Tracker 13378 | -2/Research | Spotted Tracker 13384 | -2/Research | Allies destroyed Tracker 13387 | -2/Research | Allies destroyed Tracker 13390 | -2/Research | Found Prototype Processor 13390 | -2/Research | Identified Exp. Targeting Computer 13391 | -2/Research | Spotted Combat Programmer 13395 | -2/Research | Combat Programmer assimilated allied DC-F5V(Z) 13435 | -2/Research | Spotted Combat Programmer 13438 | -2/Research | System corruption reached 10% 13483 | -2/Research | Entered Testing 13500 | -2/Testing | Lost 5 parts (2n1u2w) 13530 | -2/Testing | Found Prototype Hackware 13558 | -2/Testing | Spotted PG-4WS9XXGR6R 13574 | -2/Testing | Rewired PG-4WS9XXGR6R 13687 | -2/Testing | Found Prototype Energy Gun 13687 | -2/Testing | Identified Tachyon Dispersion Ray 13703 | -2/Testing | Discovered exit to Access (range 13) 13782 | -2/Testing | Destroyed PG-4WS9XXGR6R 13786 | -2/Testing | System corruption reached 30% 13809 | -2/Testing | Found Prototype Device 13809 | -2/Testing | Identified Exp. Weapon Cycler 13814 | -2/Testing | Found Exp. Targeting Computer 13819 | -2/Testing | Lost 4 parts (1n2u1w) 13894 | -2/Testing | Found Prototype Ballistic Gun 13967 | -2/Testing | Retrieved Zion intel report: Active Garrisons 13983 | -2/Testing | First assault squad dispatched 14073 | -2/Testing | Identified Exp. Hacking Suite 14074 | -2/Testing | Identified System Mapper 14075 | -2/Testing | Identified Deep Network Scanner 14076 | -2/Testing | Identified Exp. System Shield 14103 | -2/Testing | Intercept squad dispatched 14107 | -2/Testing | Spotted Tracker 14107 | -2/Testing | Spotted Tracker 14110 | -2/Testing | Core integrity fell below 50% 14125 | -2/Testing | Spotted Combat Programmer 14127 | -2/Testing | Identified Hyp. Multirail 14129 | -2/Testing | Spotted Combat Programmer 14135 | -2/Testing | Core integrity fell below 20% 14136 | -2/Testing | Destroyed by G-73 Enforcer with Phase Gun Last Messages --------------- 14116_ Exp. Heat Sink destroyed. 14117_ U-05 Engineer destroyed. 14119_ K-01 Serf collects debris. 14122_ Door malfunctions. 14123_ Exp. Targeting Computer destroyed. 14123_ Centrium Heavy Treads destroyed. 14123_ Enh. Biometal Leg destroyed. 14125_ Exp. Heat Sink destroyed. 14127_ Identified Hyp. Multirail. 14127_ Combat Programmer resets Tracker, system corruption cleaned. 14128_ HV Slug penetrates Reinforced Shell. 14129_ Hyp. Multirail destroyed. 14134_ Penetrated by EMDS Slug. 14134_ Machine disabled. 14134_ EMDS Slug penetrates Machine. 14134_ Slammed into Combat Programmer. 14134_ Combat Programmer suffers critical hit (Burn). 14136_ Penetrated by EMDS Slug. 14136_ Reinforced Shell breached. 14136_ Penetrated by EMDS Slug. Map ----- +----------------------------------------------------+ | ?????????????????????????????????????????????????? | | ?????????????????????????????????????????????????? | | ?????????????????????????????????????????????????? | | ?????????????????????????????????????????????????? | | ?????????????????????????????????????????????????? | | ?????????????????????????????????????????????????? | | ?????????????????????????????????????????????????? | | ?????????????????????????????????????????????????? | | ?????????????????????????????????????????????????? | | ?????????????????????????????????????????????????? | | ?????????????????????????????????????????????????? | | ?????????????????????????????????????????????????? | | ?????????????????????????????????????????????????? | | ?????????????????????????????????????????????????? | | ?????????????????????????????????????????????????? | | ?????????????????????????????????????????????????? | | ?????????????????????????????????????????????????? | | ?????????????????????????????????????????????????? | | ?????????????????????????????????????????????????? | | ?????????????????????????????????????????????????? | | ????????????????##############???????????????????? | | ????????????????# #???????????????????? | | ????????????????# #???????????????????? | | ????????????????# #???????????????????? | | ????????????????# " """ #???????????????????? | | ????????????????# "" "@ #???????????????????? | | ????????????????# """ " " #???????????????????? | | ????????????????# " s #???????????????????? | | ????????????????# pp #???????????????????? | | ????????????????# #???????????????????? | | ????????????????# gg #???????????????????? | | ????????????????# #???????????????????? | | ????????????????# g g #???????????????????? | | #####????????########g#+######???????????????????? | | " #????????# #???????????????????????? | | "" #????????# #???????????????????????? | | "" #????????# #???????????????????????? | | #????????# u #???????????????????????? | | #????????# ###/####???????????????????????? | | #????????# # ?????????????????????????? | | #####+#### # """ ???????????????????????? | | # """" #?????????????????????? | | # """" #?????????????????????? | | =%! # """ #?????????????????????? | | * # #?????????????????????? | | #/##### #### ### #?????????????????????? | | ???# ####+#?##???##?##?????????????????????? | | ???# T## ????????????????????????????????? | | ??# ""## ???????????????????????????????? | | ??# #### ??????????????????????????????? | +----------------------------------------------------+ Best States ------------- Heat Dissipation 127 Energy Generation 69 Energy Capacity 600 Matter Stores 300 Matter Capacity 300 Sight Range 16 Robot Scan Range 18 Terrain Scan Density 10 Jamming Range 16 Corruption Block 20 Armor Coverage 1350 Weapon Shielding 100 Weapon Cycling 30 Phase Shifting 15 Evasion (%) 69 Targeting Accuracy 24 Target Analysis 8 Recoil Reduction 7 Matter Filtering 50 Particle Charging 25 Offensive Hacking 61 Defensive Hacking 16 Authchip Count 1 Item Schematics ----------------- None Robot Schematics ------------------ None Fabricated ------------ Nothing Alien Tech Used ----------------- Core Reset Matrix LC Capacitor Core Expander Integrated Reactor Transdimensional Reconstructor Sigix Broadsword Phase Armor Achievements -------------- None Challenges ------------ None Game ------ Seed DeuteriumFirePenetrator Manual? 0 Play Time 02:31:49 Cumulative 577.4 hours Start 2022.03.24 @ 21:39:45 End 2022.03.25 @ 00:19:51 Sessions 1 Manual Loads 0 Difficulty Rogue Special Mode None Game No. 400 Rogue 393 Adventurer 0 Explorer 7 Win Type - Total 33 Types 9/4/13/2/0/1/2/1/1 Lore% 83 Gallery% 92 Achievement% 81 Wizard Run 0 Options --------- ASCII 0 Keyboard 0 Movement Numpad Keybinds 0 Fullscreen 1 Font 18/X11Bold Map View 76x50 Tactical HUD 1 Map Filters NONE Filters NONE Steam 1 RUN: 0cdaac35-fda0-41cb-a768-d2cbd17697fa